[Event "Summer Prague Open-A 2022"]
[Site "Prague"]
[Date "2022.08.05"]
[Round "1.12"]
[White "Neuman, Petr"]
[Black "Lye, Sverre"]
[Result "1-0"]
[ECO "B24"]
[WhiteElo "2378"]
[BlackElo "2009"]
[Annotator "TA"]
[PlyCount "65"]
[EventDate "2022.08.05"]
[EventType "swiss"]
[EventCountry "CZE"]
[SourceTitle "playchess.com"]
[Source "ChessBase"]
[SourceQuality "1"]
[TimeControl "40/5400+30:1800+30"]

{[%evp 11,65,0,0,0,33,-2,4,-18,0,-10,-1,-31,-31,-39,-35,-52,-20,-33,-16,-53,-14,-14,-14,-20,-24,-18,-19,-31,14,-12,37,31,42,0,54,41,37,32,18,17,32,2,297,297,431,389,719,590,1285,1269,29994,29995,29995,29996,29996,29997]} 1. e4 {[%emt 0:00:04] ChessBase II} c5 {[%emt 0:00:07]} 2. Nc3 {[%emt 0:00:07]} Nc6 {[%emt 0:00:10]} 3. Bb5 {[%emt 0:00:05]} Nd4 {[%emt 0:00:18]} 4. Bc4 {[%emt 0:00:05]} Nf6 {[%emt 0:00:45]} 5. Nf3 {[%emt 0:01:13]} e6 {[%emt 0:02:14]} 6. O-O {[%emt 0:00:15]} a6 {[%emt 0:01:52]} ({Much less strong is} 6... d5 7. exd5 Bd6 8. dxe6 Bxe6 9. Bxe6 Nxe6 10. d3 $14) 7. d3 {[%emt 0:01:12] B30: Sicilian: 2...Nc6 3 Bb5, lines without ...g6.} Nc6 {[%emt 0:12:13] [#]} (7... b5 $5 {[%cal Rb5c4]} 8. Bb3 Bb7 $11) 8. Bg5 $146 {[%emt 0:06:41][%cal Oc3d5]} ({Predecessor:} 8. e5 Ng4 9. Bf4 d6 10. exd6 Bxd6 11. Bxd6 Qxd6 12. Ne4 Qe7 13. d4 cxd4 14. Nxd4 Nce5 {0-1 (100) Mazzella,E (2181)-Bauer,C (2637) Vandoeuvre 2019 EXT 2020 [ChessBase II]}) 8... d6 {[%emt 0:04:48]} 9. a3 {[%emt 0:08:27] The position is equal.} Be7 {[%emt 0:02:29]} 10. Ba2 {[%emt 0:00:08]} h6 {[%emt 0:02:48]} 11. Bh4 {[%emt 0:01:17]} O-O {[%emt 0:01:21]} 12. Qe1 {[%emt 0:03:40]} b5 {[%emt 0:02:33]} 13. Nd2 {[%emt 0:02:20]} Nd4 {[%emt 0:09:39]} (13... g5 $5 {[%cal Rg5h4]} 14. Bg3 Nh5 $15) 14. Rc1 {[%emt 0:00:36]} Bb7 {[%emt 0:02:12]} 15. Ne2 {[%emt 0:02:54]} Nxe2+ {[%emt 0:05:34]} 16. Qxe2 {[%emt 0:00:15]} d5 {[%emt 0:03:19]} 17. e5 {[%emt 0:00:17]} Nd7 {[%emt 0:00:21]} 18. Bxe7 {[%emt 0:00:33]} Qxe7 {[%emt 0:00:08]} 19. f4 {[%emt 0:02:28]} f6 {[%emt 0:04:16]} 20. d4 {[%emt 0:01:15]} f5 {[%emt 0:04:36]} (20... fxe5 $11 {feels stronger.} 21. dxe5 Kh8) 21. c3 $14 {[%emt 0:02:44]} a5 {[%emt 0:02:04]} 22. Qe3 {[%emt 0:16:14][%cal Og2g4]} (22. Qxb5 Ba6 23. Qa4 Bxf1 24. Rxf1 Rfb8 $17) (22. Bb1 $5 {[%cal Rg2g4]}) 22... c4 {[%emt 0:01:34]} (22... Rfc8 $11) 23. Kh1 {[%emt 0:01:13]} b4 {[%emt 0:01:33]} 24. axb4 {[%emt 0:02:42]} axb4 {[%emt 0:00:22]} 25. Bb1 {[%emt 0:00:03]} Nb6 {[%emt 0:04:15]} 26. g4 {[%emt 0:01:02]} g6 $2 {[%emt 0:03:39][%mdl 8192] [#] This move loses the game for Black.} (26... fxg4 $11 27. Qg3 h5) 27. Rg1 $1 $18 {[%emt 0:01:20] Strongly threatening gxf5.} Kf7 {[%emt 0:01:03]} (27... Qg7 $142 28. gxf5 (28. cxb4 Kh8 $18) 28... exf5 29. Rxg6 (29. cxb4 Kh7 $18) 29... Qxg6) 28. Qh3 {[%emt 0:01:24][%cal Rg4f5]} Rh8 $2 {[%emt 0:01:05]} (28... bxc3 $2 29. bxc3 Ke8 30. gxf5 gxf5 31. Qxh6) (28... Ke8 29. Qxh6 fxg4 30. Qxg6+ Kd7) 29. gxf5 {[%emt 0:00:46]} exf5 {[%emt 0:00:32] [#]} 30. Rxg6 $3 {[%emt 0:00:40][%mdl 512]} Kxg6 {[%emt 0:01:28]} (30... Ke8 31. Bxf5) 31. Qxf5+ {[%emt 0:00:08] White mates.} Kg7 {[%emt 0:00:05]} 32. Rg1+ {[%emt 0:00:07]} Qg5 33. fxg5 {[%emt 0:00:16] Weighted Error Value: White=0.09 (flawless) /Black=0.76} 1-0

[Event "Summer Prague Open-A 2022"]
[Site "Prague"]
[Date "2022.08.05"]
[Round "1.13"]
[White "Zemlicka, Vit"]
[Black "Hollan, Martin"]
[Result "0-1"]
[ECO "B35"]
[WhiteElo "1937"]
[BlackElo "2399"]
[Annotator "TA"]
[PlyCount "104"]
[EventDate "2022.08.05"]
[EventType "swiss"]
[EventCountry "CZE"]
[SourceTitle "playchess.com"]
[Source "ChessBase"]
[SourceQuality "1"]
[TimeControl "40/5400+30:1800+30"]

{[%evp 14,104,9,4,15,8,10,0,7,0,35,23,32,15,24,0,0,0,0,0,0,0,7,0,11,0,0,0,14,0,0,-13,-14,-30,-20,-27,-10,-18,-19,-19,-19,-48,-37,-48,-55,-40,-18,-22,-20,-26,-16,-17,-17,-38,-16,-16,-16,-16,-16,-16,-16,-16,-16,-103,0,-16,-16,-16,0,-85,-96,-96,-96,-417,-410,-415,-415,-372,-323,-571,-571,-542,-532,-517,-371,-1858,-1682,-1396,-1049,-29987,-29988,-29989,-29990]} 1. e4 {[%emt 0:00:02]} c5 {[%emt 0:02:40]} 2. Nf3 {[%emt 0:00:12]} Nc6 {[%emt 0:00:15]} 3. d4 {[%emt 0:00:14]} cxd4 {[%emt 0:00:07]} 4. Nxd4 {[%emt 0:00:08]} g6 {[%emt 0:00:17]} 5. Nc3 {[%emt 0:00:35]} Bg7 {[%emt 0:00:09]} 6. Be3 {[%emt 0:00:07]} Nf6 {[%emt 0:00:14]} 7. Bc4 {[%emt 0:00:20]} O-O {[%emt 0:02:53]} 8. Bb3 {[%emt 0:00:29]} Re8 {[%emt 0:00:15] B35: Sicilian: Accelerated Dragon with 5 Nc3: main line.} 9. O-O {[%emt 0:13:33]} d6 {[%emt 0:00:06]} 10. h3 {[%emt 0:01:12]} Na5 {[%emt 0:00:08] The position is equal.} 11. Qd3 {[%emt 0:09:18]} Nxb3 {[%emt 0:02:51]} 12. axb3 {[%emt 0:00:16]} b6 {[%emt 0:12:21]} 13. Nd5 {[%emt 0:23:13]} (13. Nc6 $5 {[%cal Rc6d8]} Qd7 14. Nb4 $11) 13... Bb7 {[%emt 0:02:19] [#]} 14. Nxf6+ $146 {[%emt 0:06:24]} ({Predecessor:} 14. c4 e6 15. Nxf6+ Bxf6 16. Nb5 Re7 17. Bd4 Rd7 18. Bxf6 Qxf6 19. Nc3 g5 20. b4 {½-½ (42) Ma,Q (2606)-Cornette,M (2591) Auckland 2016}) 14... exf6 {[%emt 0:09:27]} 15. f3 {[%emt 0:04:34]} d5 {[%emt 0:06:57]} 16. exd5 {[%emt 0:00:59]} Qxd5 {[%emt 0:00:13]} 17. Bf2 {[%emt 0:04:21]} a6 {[%emt 0:05:27]} 18. c3 {[%emt 0:07:11]} Re5 {[%emt 0:10:27]} 19. Qc4 {[%emt 0:09:24]} Qd7 {[%emt 0:03:02] Prevents Qc7.} 20. Rfd1 {[%emt 0:07:56]} Rae8 {[%emt 0:24:04] [#]} 21. Ne2 $1 {[%emt 0:04:33]} Qe7 {[%emt 0:05:01]} (21... Bd5 22. Nf4) 22. Ng3 {[%emt 0:00:11]} b5 {[%emt 0:00:40]} 23. Qd3 {[%emt 0:00:58]} f5 {[%emt 0:05:40][%cal Bf6f5,Bf5f4][%mdl 32]} 24. Qd7 {[%emt 0:01:51]} f4 {[%emt 0:03:06]} 25. Qxe7 {[%emt 0:00:05]} R5xe7 {[%emt 0:00:08]} 26. Nf1 {[%emt 0:00:18]} Re2 {[%emt 0:01:39]} 27. Re1 {[%emt 0:01:34]} Rxe1 {[%emt 0:02:16]} 28. Rxe1 {[%emt 0:00:03]} Rxe1 {[%emt 0:00:30]} 29. Bxe1 $15 {[%emt 0:00:01][%mdl 4096] Endgame KBB-KBN} g5 {[%emt 0:00:34][%cal Ob5b4]} 30. b4 {[%emt 0:01:07]} Bd5 {[%emt 0:00:45]} 31. Nd2 {[%emt 0:00:42]} f5 {[%emt 0:00:10]} 32. Bf2 {[%emt 0:02:56]} Kf7 {[%emt 0:00:15]} 33. Kf1 {[%emt 0:00:05]} Ke6 {[%emt 0:00:42]} 34. Ke2 {[%emt 0:00:10]} g4 {[%emt 0:01:06]} 35. Kd3 {[%emt 0:02:03]} h5 {[%emt 0:00:17]} 36. Bd4 {[%emt 0:00:44]} Bf8 {[%emt 0:00:48]} 37. b3 {[%emt 0:00:34]} Be7 {[%emt 0:00:37]} 38. Bc5 {[%emt 0:00:35] [#]} (38. Bf2 $11) 38... Bh4 {[%emt 0:00:31]} (38... Bxc5 $1 $17 39. bxc5 a5) 39. c4 {[%emt 0:00:24]} Bc6 {[%emt 0:00:04]} 40. Bf8 {[%emt 0:00:34]} Be1 {[%emt 0:00:52]} 41. Ke2 {[%emt 0:09:54]} (41. Bh6 $1 $11 {keeps the balance.}) 41... Bxd2 $17 {[%emt 0:09:27]} 42. Kxd2 {[%emt 0:00:22] [#]} Bxf3 $1 {[%emt 0:02:48] KB-KB} ({Don't play} 42... gxf3 $6 43. gxf3 Bxf3 44. c5 $15) 43. Bh6 $2 {[%emt 0:06:52][%mdl 8192] This move loses the game for White.} (43. hxg4 $17 {was the crucial defense.} Bxg4 44. Bh6) 43... Bxg2 $19 {[%emt 0:04:26] Hoping for ...f3.} 44. Bxf4 {[%emt 0:06:12]} Bxh3 {[%emt 0:02:59]} 45. Ke3 {[%emt 0:01:52]} Bf1 {[%emt 0:09:04]} 46. c5 $2 {[%emt 0:03:01]} (46. cxb5 Bxb5 47. Bg3) 46... Bg2 {[%emt 0:02:13]} 47. Bg3 {[%emt 0:05:11]} Bd5 {[%emt 0:00:23]} 48. Kf4 {[%emt 0:00:32]} Bxb3 {[%emt 0:00:39]} 49. Kg5 $2 {[%emt 0:00:27]} (49. c6 Kd6 50. Kxf5+ Kxc6 51. Be1) 49... a5 {[%emt 0:01:37] White must now prevent ...a4.} 50. bxa5 {[%emt 0:00:26]} Bd5 {[%emt 0:00:03] ( -> ...b4)} 51. Kxh5 {[%emt 0:00:40]} b4 {[%emt 0:00:08][%cal Bb5b4,Bb4b3][%mdl 32]} 52. Be1 {[%emt 0:00:34]} b3 {[%emt 0:00:09] Weighted Error Value: White=0.62/Black=0.06 (flawless)} 0-1

[Event "Summer Prague Open-A 2022"]
[Site "Prague"]
[Date "2022.08.05"]
[Round "1.14"]
[White "Meissner, Felix"]
[Black "Ihlen, Sivert"]
[Result "1/2-1/2"]
[ECO "C21"]
[WhiteElo "2381"]
[BlackElo "2057"]
[Annotator "TA"]
[PlyCount "163"]
[EventDate "2022.08.05"]
[EventType "swiss"]
[EventCountry "CZE"]
[SourceTitle "playchess.com"]
[Source "ChessBase"]
[SourceQuality "1"]
[TimeControl "40/5400+30:1800+30"]

{[%evp 9,163,18,18,18,18,11,2,9,30,35,26,24,32,0,0,-9,-6,-5,22,0,0,0,0,0,0,0,3,0,15,22,79,80,71,76,70,83,105,116,138,127,128,93,75,40,25,8,11,11,18,15,12,6,14,15,18,11,47,15,10,10,22,20,29,19,22,8,7,0,10,18,14,0,18,11,23,0,16,-1,0,-23,0,-8,-18,-46,-50,-96,0,0,37,0,0,0,0,0,0,0,0,0,0,0,0,0,0,0,0,0,0,0,0,0,0,0,0,0,0,0,0,0,57,12,12,12,580,923,1306,1281,1392,958,1170,0,1139,1000,727,897,29974,29974,29975,29976,29975,29974,29973,1827,29973,29974,29978,29979,29978,1483,29979,29980,29985,29986,29986,29986,29985,29984]} 1. e4 {[%emt 0:00:04]} e5 {[%emt 0:00:08]} 2. d4 {[%emt 0:00:21]} exd4 {[%emt 0:01:25]} 3. Nf3 {[%emt 0:00:06]} d5 {[%emt 0:03:27]} 4. Qxd4 {[%emt 0:05:19]} Nc6 {[%emt 0:09:20]} 5. Bb5 {[%emt 0:09:44] [#]} dxe4 $146 {[%emt 0:03:06]} ({Predecessor:} 5... a6 6. Bxc6+ bxc6 7. O-O dxe4 8. Qxe4+ Ne7 9. Re1 Qd5 10. Qe2 Bf5 11. Nc3 Qd7 {1-0 (38) Sarda,P (1581)-Dias,R Timbo 2021}) 6. Bxc6+ {[%emt 0:09:27] C21: Danish Gambit.} bxc6 {[%emt 0:00:10]} 7. Qxe4+ {[%emt 0:01:29]} Qe7 {[%emt 0:03:53]} 8. Ne5 {[%emt 0:05:24] The position is equal.} Qb4+ {[%emt 0:04:41]} (8... Bb7 $5 {[%cal Rf7f6]} 9. Nc3 f6 $11) 9. Qxb4 {[%emt 0:03:09]} Bxb4+ {[%emt 0:00:08]} 10. Bd2 {[%emt 0:01:12]} Bd6 {[%emt 0:06:07] This bishop pair is nice.} 11. Bc3 {[%emt 0:01:52]} Ne7 {[%emt 0:01:56]} 12. O-O {[%emt 0:08:54]} f6 {[%emt 0:03:35]} 13. Nc4 {[%emt 0:04:39]} Ba6 {[%emt 0:06:31]} 14. Nbd2 {[%emt 0:04:12]} Nd5 {[%emt 0:03:06]} 15. Rfe1+ {[%emt 0:00:47]} Kd7 {[%emt 0:03:11]} 16. Ba5 {[%emt 0:05:09]} Rhe8 {[%emt 0:04:07]} 17. g3 {[%emt 0:04:03]} Nb6 {[%emt 0:08:32]} 18. Ne3 {[%emt 0:03:48]} Nd5 {[%emt 0:00:51]} 19. Nf5 {[%emt 0:01:18]} g6 {[%emt 0:02:32]} (19... Rab8 $11) 20. Nxd6 $16 {[%emt 0:00:44]} cxd6 {[%emt 0:00:23]} 21. c4 {[%emt 0:01:00]} Nb6 {[%emt 0:07:22]} 22. Ne4 {[%emt 0:03:46]} Re6 {[%emt 0:08:22]} 23. Rad1 {[%emt 0:04:18] aiming for Nc5+.} Ke7 {[%emt 0:01:58]} 24. b3 {[%emt 0:02:38]} c5 {[%emt 0:03:48]} 25. Bc3 {[%emt 0:02:43]} Rf8 {[%emt 0:01:42]} 26. Kf1 {[%emt 0:08:08] White is more active.} Nc8 $1 {[%emt 0:01:41]} 27. Bb2 {[%emt 0:02:41]} Bb7 {[%emt 0:00:31]} 28. Nc3 {[%emt 0:01:12]} Rxe1+ {[%emt 0:00:32]} 29. Rxe1+ {[%emt 0:00:09]} Kf7 {[%emt 0:01:21]} 30. h4 {[%emt 0:02:31]} Re8 {[%emt 0:00:28][%cal Ob7g2] Hoping for ...Bg2+!} 31. Rd1 {[%emt 0:00:27]} Rd8 {[%emt 0:02:28]} 32. Bc1 {[%emt 0:01:22]} Ne7 {[%emt 0:01:56]} 33. Nb5 {[%emt 0:00:40]} Nc8 {[%emt 0:00:58]} 34. Be3 {[%emt 0:01:09]} a6 {[%emt 0:00:40]} 35. Nc3 {[%emt 0:00:07]} Ke8 {[%emt 0:00:46]} 36. Bf4 {[%emt 0:01:07]} Ke7 {[%emt 0:01:18]} 37. Na4 {[%emt 0:01:09]} Bc6 {[%emt 0:00:32]} 38. Nc3 {[%emt 0:00:01]} Nb6 {[%emt 0:01:09]} 39. Ke2 {[%emt 0:00:48]} Rd7 {[%emt 0:02:11]} 40. Be3 {[%emt 0:00:36]} Ke6 {[%emt 0:02:23]} 41. g4 {[%emt 0:32:16]} Nc8 {[%emt 0:05:41]} 42. Rb1 {[%emt 0:00:00]} Ne7 {[%emt 0:03:25]} 43. a3 {[%emt 0:00:00]} h5 {[%emt 0:05:05]} 44. f3 {[%emt 0:00:00]} f5 {[%emt 0:03:17]} 45. g5 {[%emt 0:00:00]} f4 {[%emt 0:00:58]} 46. Bf2 {[%emt 0:00:00]} Nf5 {[%emt 0:01:46]} 47. b4 {[%emt 0:00:00]} (47. Ne4 $15 {was preferrable.}) 47... cxb4 {[%emt 0:01:09]} ({Better is} 47... Ng3+ $1 $17 48. Bxg3 fxg3) 48. axb4 $11 {[%emt 0:00:00]} d5 {[%emt 0:00:37]} 49. cxd5+ {[%emt 0:00:00]} Bxd5 {[%emt 0:00:06]} 50. Nxd5 {[%emt 0:00:00]} Rxd5 $14 {[%emt 0:01:02][%mdl 4096] Endgame KRB-KRN} 51. Ra1 {[%emt 0:00:00]} Rd6 {[%emt 0:01:01]} 52. Ra5 {[%emt 0:00:00]} Rc6 {[%emt 0:05:13]} 53. Kd3 {[%emt 0:00:00]} Nd6 {[%emt 0:00:12]} 54. Bd4 {[%emt 0:00:00]} Nf5 {[%emt 0:02:33] And now ...Rd6 would win.} 55. Bf2 {[%emt 0:00:09]} Nd6 {[%emt 0:00:05]} 56. Be1 {[%emt 0:00:51]} Nc4 {[%emt 0:00:43]} 57. Ra2 {[%emt 0:01:48]} Ne5+ {[%emt 0:00:07]} 58. Ke2 {[%emt 0:00:08]} Rd6 {[%emt 0:02:52]} 59. Bd2 {[%emt 0:01:24]} Kf5 {[%emt 0:00:13]} 60. Ra5 {[%emt 0:00:43] Black must now prevent Bc3.} Rc6 {[%emt 0:03:16] Inhibits Bc3.} 61. Rd5 {[%emt 0:03:47]} Rc4 {[%emt 0:01:15]} 62. Rd6 {[%emt 0:00:41][%csl Gg5][%cal Rd6f6]} Rc6 {[%emt 0:00:05]} 63. Rd8 {[%emt 0:00:23]} Rc7 {[%emt 0:01:33]} (63... Rc2 $11) 64. Ra8 {[%emt 0:00:58]} Rc2 $1 {[%emt 0:00:27]} 65. Rxa6 {[%emt 0:01:06][%csl Gg5][%cal Ra6f6]} Nc4 $2 {[%emt 0:00:32][%mdl 8192] Black is now going downhill.} (65... Nxf3 $1 $11 {and Black has nothing to worry.} 66. Kxf3 Rxd2) 66. Kd3 $18 {[%emt 0:00:18]} Rxd2+ {[%emt 0:00:28]} 67. Kxc4 {[%emt 0:00:02] KR-KR} Rc2+ {[%emt 0:00:25]} 68. Kd4 {[%emt 0:00:20][%csl Gg5][%cal Ra6f6]} Rd2+ {[%emt 0:00:27]} 69. Kc4 {[%emt 0:01:07]} Rc2+ $1 {[%emt 0:00:20]} 70. Kd5 {[%emt 0:00:15][%csl Gg5][%cal Ra6f6]} Rd2+ {[%emt 0:00:13] [#]} 71. Kc5 $1 {[%emt 0:00:33]} Rc2+ {[%emt 0:00:24] [#]} 72. Kd6 $1 {[%emt 0:00:31]} Rd2+ {[%emt 0:00:38]} 73. Ke7 {[%emt 0:00:10]} Ke5 {[%emt 0:01:06]} 74. Re6+ {[%emt 0:00:41]} Kf5 {[%emt 0:00:07]} 75. Rf6+ {[%emt 0:00:36]} Ke5 {[%emt 0:00:02]} 76. Rxg6 {[%emt 0:00:55]} Rd3 {[%emt 0:00:13]} 77. Re6+ {[%emt 0:00:09]} Kf5 {[%emt 0:00:06]} 78. Rf6+ {[%emt 0:00:11]} Ke5 {[%emt 0:00:05]} 79. g6 {[%emt 0:00:43][%cal Bg5g6,Bg6g7][%mdl 32] White mates.} Rxf3 {[%emt 0:00:24]} 80. g7 {[%emt 0:00:16]} Rg3 {[%emt 0:00:03]} 81. Kf7 {[%emt 0:00:26]} f3 {[%emt 0:00:03]} 82. b5 {[%emt 0:00:23][%mdl 32768] Weighted Error Value: White=0.09 (flawless) /Black=0.10 (very precise) . An unexpected result.} 1/2-1/2

[Event "Summer Prague Open-A 2022"]
[Site "Prague"]
[Date "2022.08.05"]
[Round "1.15"]
[White "Kucera, Tomas"]
[Black "Roubalik, Jakub"]
[Result "0-1"]
[ECO "B30"]
[WhiteElo "1955"]
[BlackElo "2380"]
[Annotator "TA"]
[PlyCount "52"]
[EventDate "2022.08.05"]
[EventType "swiss"]
[EventCountry "CZE"]
[SourceTitle "playchess.com"]
[Source "ChessBase"]
[SourceQuality "1"]
[TimeControl "40/5400+30:1800+30"]

{[%evp 21,52,-46,-41,-44,-29,-54,-41,-45,-43,-43,-48,-103,-103,-133,-143,-133,-135,-138,-81,-150,-160,-155,-121,-172,-120,-239,-213,-299,-310,-487,-485,-464,-408]} 1. e4 {[%emt 0:00:02]} c5 {[%emt 0:00:29]} 2. Nf3 {[%emt 0:00:03]} Nc6 {[%emt 0:00:03]} 3. Nc3 {[%emt 0:01:15]} e5 {[%emt 0:01:35]} 4. g3 {[%emt 0:02:04]} d6 {[%emt 0:00:56]} 5. Bg2 {[%emt 0:00:26]} g6 {[%emt 0:01:31]} 6. O-O {[%emt 0:00:57]} Bg7 {[%emt 0:00:08]} 7. d3 {[%emt 0:04:00]} Nge7 {[%emt 0:00:47]} 8. Be3 {[%emt 0:01:45]} O-O {[%emt 0:00:23]} 9. Nh4 {[%emt 0:03:56]} Be6 {[%emt 0:06:59]} 10. f4 {[%emt 0:01:17]} exf4 {[%emt 0:00:45]} 11. gxf4 {[%emt 0:01:23]} f5 {[%emt 0:00:33]} 12. Nf3 {[%emt 0:02:17] B25: Closed Sicilian: 3 g3, lines without early Be3.} Kh8 {[%emt 0:25:01] [#]} (12... Nd4 {looks sharper.} 13. Ng5 Bd7 14. a4 h6) 13. Qe1 $146 {[%emt 0:01:38]} ({Predecessor:} 13. Ng5 Bg8 14. Nd5 h6 15. Nh3 Rb8 16. Rb1 Qd7 17. a3 fxe4 18. Nxe7 Qxe7 19. dxe4 {0-1 (50) Kleberc,K (2318)-Butkiewicz,L (2379) Czech Republic 2010}) 13... Bg8 {[%emt 0:04:26]} 14. Kh1 {[%emt 0:11:55] Black is slightly better.} b6 {[%emt 0:04:01]} 15. Rd1 {[%emt 0:06:27]} d5 {[%emt 0:11:19] Strongly threatening ...d4.} 16. Bc1 {[%emt 0:08:54]} (16. Bf2 $15) 16... Nb4 $17 {[%emt 0:09:42]} 17. Nxd5 {[%emt 0:10:28]} Nexd5 {[%emt 0:01:16]} (17... Nbxd5 18. exd5 Bxd5 19. c4 Bxf3 20. Rxf3 $11) 18. exd5 {[%emt 0:00:22]} Nxc2 {[%emt 0:00:51]} ({Not} 18... Bxd5 19. c3 Nc6 20. Be3 $15) 19. Qf2 {[%emt 0:00:48] [#]} Nb4 {[%emt 0:00:39] Black is more active.} (19... Nd4 $142 $1 20. Nxd4 cxd4) 20. d4 {[%emt 0:03:18] [#]} (20. b3 $142) 20... c4 $1 {[%emt 0:00:40]} ({Don't play} 20... Qxd5 21. a3 Na6 22. Ne5 $14) ({Worse is} 20... Nxa2 21. dxc5 Nxc1 22. Rxc1 $11) 21. Ne5 {[%emt 0:05:17]} Bxd5 {[%emt 0:00:53]} 22. a3 {[%emt 0:00:49]} (22. Bd2 $17 Nd3 23. Nxd3 cxd3 24. Bc3) 22... Nd3 {[%emt 0:03:59]} (22... Bxe5 $19 23. dxe5 Nd3) 23. Qg3 {[%emt 0:09:28]} (23. Nxd3 $17 cxd3 24. Bxd5 Qxd5+ 25. Qf3 Qxd4 26. Rxd3) 23... Bxg2+ {[%emt 0:04:04]} 24. Qxg2 {[%emt 0:00:23]} (24. Kxg2 $142 Bxe5 25. dxe5) 24... Qxd4 $19 {[%emt 0:00:53]} 25. Nf7+ {[%emt 0:04:04]} (25. Nxd3 {might work better.} cxd3 26. Rf3) 25... Kg8 {[%emt 0:00:27]} 26. Ng5 {[%emt 0:00:02]} Rae8 {[%emt 0:01:51] Against Ne6.  Weighted Error Value: White=0.47/Black=0.15 (very precise)} 0-1

[Event "Summer Prague Open-A 2022"]
[Site "Prague"]
[Date "2022.08.05"]
[Round "1.16"]
[White "Hrabusa, Matej"]
[Black "Leitgeb, Julian"]
[Result "1-0"]
[ECO "A45"]
[WhiteElo "2354"]
[BlackElo "1955"]
[Annotator "TA"]
[PlyCount "47"]
[EventDate "2022.08.05"]
[EventType "swiss"]
[EventCountry "CZE"]
[SourceTitle "playchess.com"]
[Source "ChessBase"]
[SourceQuality "1"]
[TimeControl "40/5400+30:1800+30"]

{[%evp 9,47,0,13,0,0,-2,0,-33,-66,-77,-52,-105,-108,-89,-85,-100,-60,-120,-47,-61,-75,-253,22,33,59,101,377,359,695,721,718,721,928,928,888,884,29985,29986,5789,2300]} 1. d4 {[%emt 0:05:48]} Nf6 {[%emt 0:00:07]} 2. Bf4 {[%emt 0:00:21]} g6 {[%emt 0:00:13]} 3. Nc3 {[%emt 0:00:05]} d5 {[%emt 0:00:07]} 4. e3 {[%emt 0:00:04]} Bg7 {[%emt 0:00:21]} 5. h4 {[%emt 0:00:17]} h5 {[%emt 0:00:07]} 6. Nf3 {[%emt 0:00:06] A45: Trompowsky Attack.} O-O {[%emt 0:00:24][%cal Oc7c5]} 7. Qd2 {[%emt 0:00:56]} c5 {[%emt 0:09:47]} 8. dxc5 {[%emt 0:09:02] The position is equal.} Nbd7 {[%emt 0:11:25]} 9. O-O-O {[%emt 0:06:42]} Nxc5 {[%emt 0:04:31]} 10. Ne5 {[%emt 0:09:41]} (10. Nxd5 Nxd5 11. Qxd5 Qb6 $17) (10. Ng5 $15) 10... Qb6 {[%emt 0:10:50]} 11. f3 {[%emt 0:04:02] Inhibits Nce4.} Be6 {[%emt 0:03:59] [#] Prevents g4.} 12. Be2 $146 {[%emt 0:06:13]} ({Predecessor:} 12. Qd4 Rac8 13. Na4 Nxa4 14. Qxa4 Nd7 15. Nd3 Rc4 16. Qb3 Rfc8 17. Rd2 Qa5 18. a3 b5 19. Nb4 Nc5 20. Bxc4 dxc4 21. Qa2 Nb3+ {0-1 (21) Kroneder,C (2045)-Kotz,R (2153) Nuremberg 2019}) 12... Nfd7 {[%emt 0:11:17]} 13. Nxd7 {[%emt 0:03:42]} (13. Qd4 $15) 13... Nxd7 {[%emt 0:00:02]} (13... Bxd7 $17 14. e4 (14. Qxd5 $2 Be6 $19) 14... dxe4) 14. g4 $15 {[%emt 0:08:58] gxh5 is the strong threat.} Rfc8 {[%emt 0:04:18][%cal Oc8c3] Hoping for ...Rxc3!} 15. Nb5 {[%emt 0:03:04]} (15. Na4 $17 Qc6 16. Nc3) 15... d4 $2 {[%emt 0:05:11]} (15... hxg4 $19 16. fxg4 Nc5) 16. exd4 $11 {[%emt 0:04:48] Strongly threatening d5.} Bxa2 {[%emt 0:03:20]} 17. gxh5 {[%emt 0:03:02]} gxh5 {[%emt 0:13:39][%mdl 8192]} (17... e5 $16 {was necessary.}) 18. Rhg1 $18 {[%emt 0:01:28]} Kf8 $2 {[%emt 0:05:46] [#]} (18... Nf8 19. Nc3 Bc4) 19. Rxg7 $1 {[%emt 0:03:58][%mdl 512]} Kxg7 {[%emt 0:01:15]} 20. Rg1+ {[%emt 0:00:10]} Kh8 {[%emt 0:00:56] [#]} 21. Bd6 $1 {[%emt 0:00:40][%cal Rd2h6][%mdl 512] This bishop pair is nice.} Rxc2+ {[%emt 0:06:51]} 22. Kxc2 {[%emt 0:02:19][%cal Rd2h6,Bc1c2,Bc2d1,Bd1e1][%mdl 32]} Rc8+ {[%emt 0:01:40]} 23. Kd1 {[%emt 0:00:38][%cal Rd2h6]} Bb3+ {[%emt 0:00:46]} 24. Ke1 {[%emt 0:00:06] Weighted Error Value: White=0.21 (precise) /Black=1.07} 1-0